fUSD/lending_fUSD_20260121
["ID","MTS","AMOUNT","RATE_DAILY","PERIOD"]
[402917140,1768987325040,-500.0,0.00042191,120]
[402917141,1768987325094,-500.0,0.00042191,120]
[402917142,1768987325147,-500.0,0.00042191,120]
[402917143,1768987325198,-626.29696277,0.00042191,120]
[402917144,1768987325251,-646.03,0.00042191,120]
[402917145,1768987325303,-500.0,0.00042191,120]
[402917146,1768987325355,-500.0,0.00042191,120]
[402917147,1768987325406,-527.83926835,0.00042191,120]
[402917148,1768987325456,-500.0,0.00042191,120]
[402917149,1768987325506,-509.3577196,0.00042191,120]
[402917150,1768987325556,-782.9,0.00042191,120]
[402917151,1768987325609,-500.0,0.00042191,120]
[402917152,1768987325657,-500.0,0.00042191,120]
[402917153,1768987325706,-823.58,0.00042191,120]
[402917154,1768987325753,-500.0,0.00042191,120]
[402917155,1768987325801,-541.08,0.00042191,120]
[402917156,1768987325848,-500.0,0.00042191,120]
[402917157,1768987325897,-500.0,0.00042191,120]
[402917158,1768987325944,-500.0,0.00042191,120]
[402917159,1768987325991,-528.9,0.00042191,120]
[402917160,1768987326042,-500.0,0.00042191,120]
[402917161,1768987326090,-500.0,0.00042191,120]
[402917162,1768987326138,-500.0,0.00042191,120]
[402917163,1768987326188,-582.43,0.00042191,120]
[402917164,1768987326237,-871.03,0.00042191,120]
[402917165,1768987326284,-500.0,0.00042191,120]
[402917166,1768987326331,-996.99,0.00042191,120]
[402917167,1768987326378,-519.81,0.00042191,120]
[402917168,1768987326423,-500.0,0.00042191,120]
[402917169,1768987326468,-743.11,0.00042191,120]
[402917170,1768987326513,-500.0,0.00042191,120]
[402917171,1768987326559,-696.85,0.00042191,120]
[402917172,1768987326603,-500.0,0.00042191,120]
[402917173,1768987326649,-773.56,0.00042191,120]
[402917174,1768987326695,-500.0,0.00042191,120]
[402917175,1768987326743,-500.0,0.00042191,120]
[402917176,1768987326790,-500.0,0.00042191,120]
[402917177,1768987326838,-500.0,0.00042191,120]
[402917178,1768987326883,-500.0,0.00042191,120]
[402917179,1768987326931,-500.0,0.00042191,120]
[402917180,1768987326977,-500.75,0.00042191,120]
[402917181,1768987327027,-1016.1,0.00042191,120]
[402917182,1768987327076,-1066.17,0.00042191,120]
[402917183,1768987327124,-500.0,0.00042191,120]
[402917184,1768987327171,-500.0,0.00042191,120]
[402917185,1768987327218,-500.0,0.00042191,120]
[402917186,1768987327266,-500.0,0.00042191,120]
[402917187,1768987327314,-500.0,0.00042191,120]
[402917188,1768987327363,-500.0,0.00042191,120]
[402917189,1768987327409,-500.0,0.00042191,120]
[402917190,1768987327452,-500.0,0.00042191,120]
[402917191,1768987327497,-505.53,0.00042191,120]
[402917192,1768987327540,-504.31256493,0.00042191,120]
[402917193,1768987327583,-550.15874855,0.00042191,120]
[402917194,1768987327625,-500.0,0.00042191,120]
[402917195,1768987327667,-500.0,0.00042191,120]
[402917196,1768987327711,-500.0,0.00042191,120]
[402917197,1768987327755,-500.0,0.00042191,120]
[402917198,1768987327800,-500.0,0.00042191,120]
[402917199,1768987327844,-242.06344195,0.00042191,120]
[402917200,1768987327888,-500.0,0.00042191,120]
[402917201,1768987327933,-500.0,0.00042191,120]
[402917202,1768987328200,-754.45,0.00042191,120]
[402917203,1768987328249,-500.0,0.00042191,120]
[402917204,1768987328299,-500.0,0.00042191,120]
[402917205,1768987328347,-500.0,0.00042191,120]
[402917206,1768987328394,-456.12283498,0.00042191,120]
[402917207,1768987328440,-500.0,0.00042191,120]
[402917208,1768987328487,-163.11878366,0.00042191,120]
[402917209,1768987328533,-500.0,0.00042191,120]
[402917210,1768987328579,-500.0,0.00042191,120]
[402917211,1768987328625,-500.0,0.00042191,120]
[402917212,1768987328671,-500.0,0.00042191,120]
[402917213,1768987328718,-729.84,0.00042191,120]
[402917214,1768987328763,-500.0,0.00042191,120]
[402917215,1768987328809,-533.28,0.00042191,120]
[402917216,1768987328854,-500.0,0.00042191,120]
[402917217,1768987328898,-500.0,0.00042191,120]
[402917218,1768987328946,-461.79626146,0.00042191,120]
[402917219,1768987328999,-500.0,0.00042191,120]
[402917220,1768987329050,-500.0,0.00042191,120]
[402917221,1768987329098,-563.09151214,0.00042191,120]
[402917222,1768987329151,-500.0,0.00042191,120]
[402917223,1768987329198,-500.0,0.00042191,120]
[402917224,1768987329245,-873.03,0.00042191,120]
[402917225,1768987329291,-500.0,0.00042191,120]
[402917226,1768987329335,-500.0,0.00042191,120]
[402917227,1768987329380,-500.0,0.00042191,120]
[402917228,1768987329424,-500.0,0.00042191,120]
[402917229,1768987329469,-500.0,0.00042191,120]
[402917230,1768987329512,-500.0,0.00042191,120]
[402917231,1768987329555,-500.0,0.00042191,120]
[402917232,1768987329597,-685.07,0.00042191,120]
[402917233,1768987329643,-407.61409408,0.00042191,120]
[402917234,1768987353933,20000.0,0.00042981,60]
[402917236,1768987399834,151.0,0.00042981,60]
[402917237,1768987400423,151.0,0.00042981,60]
[402917238,1768987401027,151.0,0.00042981,60]
[402917239,1768987401629,151.0,0.00042981,60]
[402917240,1768987402630,151.0,0.00042981,60]
[402917241,1768987402836,151.0,0.00042981,60]
[402917242,1768987403428,151.0,0.00042981,60]
[402917243,1768987404170,151.0,0.00042981,60]
[402917244,1768987404793,151.0,0.00042981,60]
[402917245,1768987405385,151.0,0.00042981,60]
[402917246,1768987405984,151.0,0.00042981,60]
[402917247,1768987406584,151.0,0.00042981,60]
[402917248,1768987407196,151.0,0.00042981,60]
[402917249,1768987407801,151.0,0.00042981,60]
[402917250,1768987408444,151.0,0.00042981,60]
[402917251,1768987409117,151.0,0.00042981,60]
[402917252,1768987409735,151.0,0.00042981,60]
[402917253,1768987410340,151.0,0.00042981,60]
[402917254,1768987410953,151.0,0.00042981,60]
[402917255,1768987411561,151.0,0.00042981,60]
[402917256,1768987424174,3854200.72748119,0.00042981,30]
[402917257,1768987460356,151.0,0.00042981,120]
[402917258,1768987460660,151.0,0.00042981,120]
[402917259,1768987461385,292.297903,0.00042981,120]
[402917260,1768987466720,5925085.12,0.00042981,30]
[402917261,1768987482202,151.0,0.00042981,60]
[402917262,1768987482810,151.0,0.00042981,60]
[402917263,1768987483942,151.0,0.00042981,60]
[402917264,1768987489888,170.4,0.00015915,2]
[402917265,1768987502061,-150.0080175,0.00025083,31]
[402917266,1768987502110,-150.0080175,0.00026262,35]
[402917267,1768987502166,-150.0080175,0.00027442,39]
[402917268,1768987502220,-150.0080175,0.00028622,43]
[402917269,1768987502274,-150.0080175,0.00029801,47]
[402917270,1768987502322,-150.0080175,0.00030981,52]
[402917271,1768987502372,-150.0080175,0.0003216,56]
[402917272,1768987502421,-150.00801768,0.0003334,60]
[402917273,1768987502471,-212.77367991,0.0003452,64]
[402917274,1768987502519,-212.77367991,0.00035699,68]
[402917275,1768987502564,-212.77367991,0.00036879,72]
[402917276,1768987502611,-212.77367991,0.00038058,78]
[402917277,1768987502660,-361.2911,0.00038888,30]
[402917278,1768987502703,-212.77367991,0.00039238,85]
[402917279,1768987502749,-442.0,0.00039863,30]
[402917280,1768987502795,-500.0,0.00039863,30]
[402917281,1768987502837,-500.0,0.00039863,30]
[402917282,1768987502878,-500.0,0.00039863,30]
[402917283,1768987502920,-500.0,0.00039863,30]
[402917284,1768987502966,-500.0,0.00039863,30]
[402917285,1768987503013,-500.0,0.00039863,30]
[402917286,1768987503068,-500.0,0.00039863,30]
[402917287,1768987503118,-500.0,0.00039863,30]
[402917288,1768987503177,-636.0,0.00039863,30]
[402917289,1768987503230,-442.0,0.00039918,30]
[402917290,1768987503283,-600.0,0.00039918,30]
[402917291,1768987503335,-500.0,0.00039918,30]
[402917292,1768987503386,-500.0,0.00039918,30]
[402917293,1768987503438,-500.0,0.00039918,30]
[402917294,1768987503491,-500.0,0.00039918,30]
[402917295,1768987503542,-500.0,0.00039918,30]
[402917296,1768987503592,-500.0,0.00039918,30]
[402917297,1768987503640,-500.0,0.00039918,30]
[402917298,1768987503690,-636.0,0.00039918,30]
[402917299,1768987503739,-442.0,0.00039973,30]
[402917300,1768987503788,-500.0,0.00039973,30]
[402917301,1768987503840,-500.0,0.00039973,30]
[402917302,1768987503892,-500.0,0.00039973,30]
[402917303,1768987503954,-500.0,0.00039973,30]
[402917304,1768987504015,-500.0,0.00039973,30]
[402917305,1768987504069,-500.0,0.00039973,30]
[402917306,1768987504126,-500.0,0.00039973,30]
[402917307,1768987504179,-636.0,0.00039973,30]
[402917308,1768987504232,-442.0,0.00040027,30]
[402917309,1768987504288,-500.0,0.00040027,30]
[402917310,1768987504343,-500.0,0.00040027,30]
[402917311,1768987504402,-500.0,0.00040027,30]
[402917312,1768987504461,-500.0,0.00040027,30]
[402917313,1768987504513,-500.0,0.00040027,30]
[402917314,1768987504566,-500.0,0.00040027,30]
[402917315,1768987504622,-500.0,0.00040027,30]
[402917316,1768987504677,-636.0,0.00040027,30]
[402917317,1768987504731,-442.0,0.00040082,30]
[402917318,1768987504784,-166.77063217,0.00040082,30]
[402917319,1768987504836,-500.0,0.00040082,30]
[402917320,1768987504889,-500.0,0.00040082,30]
[402917321,1768987504942,-500.0,0.00040082,30]
[402917322,1768987504996,-500.0,0.00040082,30]
[402917323,1768987505054,-500.0,0.00040082,30]
[402917324,1768987505108,-500.0,0.00040082,30]
[402917325,1768987505166,-636.0,0.00040082,30]
[402917326,1768987505221,-718.005,0.00040133,57]
[402917327,1768987505274,-442.0,0.00040137,30]
[402917328,1768987505328,-500.0,0.00040137,30]
[402917329,1768987505382,-500.0,0.00040137,30]
[402917330,1768987505433,-500.0,0.00040137,30]
[402917331,1768987505490,-500.0,0.00040137,30]
[402917332,1768987505541,-500.0,0.00040137,30]
[402917333,1768987505593,-500.0,0.00040137,30]
[402917334,1768987505642,-636.0,0.00040137,30]
[402917335,1768987505691,-442.0,0.00040192,30]
[402917336,1768987505744,-500.0,0.00040192,30]
[402917337,1768987505796,-500.0,0.00040192,30]
[402917338,1768987505846,-500.0,0.00040192,30]
[402917339,1768987505895,-500.0,0.00040192,30]
[402917340,1768987505945,-500.0,0.00040192,30]
[402917341,1768987505997,-500.0,0.00040192,30]
[402917342,1768987506235,-636.0,0.00040192,30]
[402917343,1768987506286,-442.0,0.00040247,30]
[402917344,1768987506338,-500.0,0.00040247,30]
[402917345,1768987506389,-500.0,0.00040247,30]
[402917346,1768987506440,-452.7794935,0.00040247,30]
[402917347,1768987506491,-500.0,0.00040247,30]
[402917348,1768987506543,-245.87988596,0.00040247,30]
[402917349,1768987506596,-500.0,0.00040247,30]
[402917350,1768987506648,-636.0,0.00040247,30]
[402917351,1768987506701,-442.0,0.00040301,30]
[402917352,1768987506753,-500.0,0.00040301,30]
[402917353,1768987506804,-500.0,0.00040301,30]
[402917354,1768987506855,-500.0,0.00040301,30]
[402917355,1768987506912,-500.0,0.00040301,30]
[402917356,1768987506988,-636.0,0.00040301,30]
[402917357,1768987507056,-442.0,0.00040356,30]
[402917358,1768987507119,-150.42477095,0.00040356,30]
[402917359,1768987507195,-500.0,0.00040356,30]
[402917360,1768987507253,-500.0,0.00040356,30]
[402917361,1768987507327,-500.0,0.00040356,30]
[402917362,1768987507394,-636.0,0.00040356,30]
[402917363,1768987507450,-442.0,0.00040411,30]
[402917364,1768987507514,-500.0,0.00040411,30]
[402917365,1768987507588,-500.0,0.00040411,30]
[402917366,1768987507642,-500.0,0.00040411,30]
[402917367,1768987507709,-636.0,0.00040411,30]
[402917368,1768987507768,-212.77367991,0.00040418,93]
[402917369,1768987507822,-442.0,0.00040466,30]
[402917370,1768987507876,-500.0,0.00040466,30]
[402917371,1768987507930,-500.0,0.00040466,30]
[402917372,1768987507985,-500.0,0.00040466,30]
[402917373,1768987508042,-636.0,0.00040466,30]
[402917374,1768987508103,-442.0,0.00040521,30]
[402917375,1768987508160,-295.13583432,0.00040521,30]
[402917376,1768987508218,-450.62704032,0.00040521,30]
[402917377,1768987508276,-500.0,0.00040521,30]
[402917378,1768987508331,-636.0,0.00040521,30]
[402917379,1768987508384,-442.0,0.00040575,30]
[402917380,1768987508439,-500.0,0.00040575,30]
[402917381,1768987508492,-636.0,0.00040575,30]
[402917382,1768987508548,-442.0,0.0004063,30]
[402917383,1768987508604,-500.0,0.0004063,30]
[402917384,1768987508659,-636.0,0.0004063,30]
[402917385,1768987508715,-442.0,0.00040685,30]
[402917386,1768987508771,-500.0,0.00040685,30]
[402917387,1768987508827,-636.0,0.00040685,30]
[402917388,1768987508882,-442.0,0.0004074,30]
[402917389,1768987508936,-500.0,0.0004074,30]
[402917390,1768987508991,-636.0,0.0004074,30]
[402917391,1768987509048,-442.0,0.00040795,30]
[402917392,1768987509110,-500.0,0.00040795,30]
[402917393,1768987509168,-636.0,0.00040795,30]
[402917394,1768987509224,-442.0,0.00040849,30]
[402917395,1768987509281,-500.0,0.00040849,30]
[402917396,1768987509337,-636.0,0.00040849,30]
[402917397,1768987509392,-442.0,0.00040904,30]
[402917398,1768987509447,-204.0,0.00040904,30]
[402917399,1768987509503,-636.0,0.00040904,30]
[402917400,1768987509556,-442.0,0.00040959,30]
[402917401,1768987509609,-636.0,0.00040959,30]
[402917402,1768987509663,-792.0,0.00041,30]
[402917403,1768987509721,-442.0,0.00041014,30]
[402917404,1768987509775,-636.0,0.00041014,30]
[402917405,1768987509826,-442.0,0.00041068,30]
[402917406,1768987509881,-636.0,0.00041068,30]
[402917407,1768987509939,-500.0,0.00041095,120]
[402917408,1768987509994,-726.21,0.00041095,120]
[402917409,1768987510052,-502.6962378,0.00041095,120]
[402917410,1768987510110,-500.0,0.00041095,120]
[402917411,1768987510175,-500.0,0.00041095,120]
[402917412,1768987510228,-862.89,0.00041095,120]
[402917413,1768987510281,-500.0,0.00041095,120]
[402917414,1768987510333,-500.0,0.00041095,120]
[402917415,1768987510385,-543.85808227,0.00041095,120]
[402917416,1768987510435,-500.0,0.00041095,120]
[402917417,1768987510485,-500.0,0.00041095,120]
[402917418,1768987510536,-500.0,0.00041095,120]
[402917419,1768987510586,-500.0,0.00041095,120]
[402917420,1768987510637,-502.83999916,0.00041095,120]
[402917421,1768987510689,-500.0,0.00041095,120]
[402917422,1768987510741,-572.26,0.00041095,120]
[402917423,1768987510794,-504.18875267,0.00041095,120]
[402917424,1768987510849,-500.0,0.00041095,120]
[402917425,1768987510901,-500.0,0.00041095,120]
[402917426,1768987510953,-500.0,0.00041095,120]
[402917427,1768987511003,-500.0,0.00041095,120]
[402917428,1768987511059,-500.0,0.00041095,120]
[402917429,1768987511112,-500.0,0.00041095,120]
[402917430,1768987511163,-500.0,0.00041095,120]
[402917431,1768987511214,-1126.09,0.00041095,120]
[402917432,1768987511267,-500.0,0.00041095,120]
[402917433,1768987511324,-500.0,0.00041095,120]
[402917434,1768987511376,-500.0,0.00041095,120]
[402917435,1768987511427,-500.0,0.00041095,120]
[402917436,1768987511650,-757.16,0.00041095,120]
[402917437,1768987511702,-500.0,0.00041095,120]
[402917438,1768987511754,-500.0,0.00041095,120]
[402917439,1768987511807,-500.0,0.00041095,120]
[402917440,1768987511859,-500.0,0.00041095,120]
[402917441,1768987511913,-500.0,0.00041095,120]
[402917442,1768987511967,-500.0,0.00041095,120]
[402917443,1768987512020,-500.0,0.00041095,120]
[402917444,1768987512075,-500.0,0.00041095,120]
[402917445,1768987512130,-500.0,0.00041095,120]
[402917446,1768987512183,-500.0,0.00041095,120]
[402917447,1768987512238,-500.0,0.00041095,120]
[402917448,1768987512293,-500.0,0.00041095,120]
[402917449,1768987512349,-500.0,0.00041095,120]
[402917450,1768987512402,-1000.0,0.00041095,120]
[402917451,1768987512456,-500.0,0.00041095,120]
[402917452,1768987512509,-504.14319256,0.00041095,120]
[402917453,1768987512561,-500.0,0.00041095,120]
[402917454,1768987512615,-500.0,0.00041095,120]
[402917455,1768987512667,-760.9,0.00041095,120]
[402917456,1768987512719,-504.85653976,0.00041095,120]
[402917457,1768987512771,-506.73599314,0.00041095,120]
[402917458,1768987512825,-500.0,0.00041095,120]
[402917459,1768987512882,-500.0,0.00041095,120]
[402917460,1768987512939,-509.8942373,0.00041095,120]
[402917461,1768987513001,-511.6685296,0.00041095,120]
[402917462,1768987513064,-500.0,0.00041095,120]
[402917463,1768987513123,-508.29126634,0.00041095,120]
[402917464,1768987513181,-500.0,0.00041095,120]
[402917465,1768987513241,-668.11,0.00041095,120]
[402917466,1768987513301,-504.65055035,0.00041095,120]
[402917467,1768987513355,-500.0,0.00041095,120]
[402917468,1768987513406,-500.0,0.00041095,120]
[402917469,1768987513458,-500.0,0.00041095,120]
[402917470,1768987513509,-637.16,0.00041095,120]
[402917471,1768987513565,-505.66,0.00041095,120]
[402917472,1768987513643,-1065.16,0.00041095,120]
[402917473,1768987513706,-1064.67,0.00041095,120]
[402917474,1768987513767,-500.0,0.00041095,120]
[402917475,1768987513827,-500.0,0.00041095,120]
[402917476,1768987513882,-871.03,0.00041095,120]
[402917477,1768987513938,-525.23,0.00041095,120]
[402917478,1768987513995,-500.0,0.00041095,120]
[402917479,1768987514052,-662.06,0.00041095,120]
[402917480,1768987514108,-1051.35,0.00041095,120]
[402917481,1768987514167,-1104.23,0.00041095,120]
[402917482,1768987514222,-500.0,0.00041095,120]
[402917483,1768987514275,-500.0,0.00041095,120]
[402917484,1768987514340,-500.0,0.00041095,120]
[402917485,1768987514401,-500.0,0.00041095,120]
[402917486,1768987514455,-500.0,0.00041095,120]
[402917487,1768987514508,-500.0,0.00041095,120]
[402917488,1768987514563,-662.74,0.00041095,120]
[402917489,1768987514615,-543.88,0.00041095,120]
[402917490,1768987514668,-500.0,0.00041095,120]
[402917491,1768987514722,-500.0,0.00041095,120]
[402917492,1768987514776,-592.98,0.00041095,120]
[402917493,1768987514830,-500.0,0.00041095,120]
[402917494,1768987514883,-500.0,0.00041095,120]
[402917495,1768987514937,-500.0,0.00041095,120]
[402917496,1768987514991,-732.36,0.00041095,120]
[402917497,1768987515047,-500.0,0.00041095,120]
[402917498,1768987515109,-500.0,0.00041095,120]
[402917499,1768987515166,-584.28,0.00041095,120]
[402917500,1768987515223,-500.0,0.00041095,120]
[402917501,1768987515278,-512.89,0.00041095,120]
[402917502,1768987515331,-594.65,0.00041095,120]
[402917503,1768987515384,-500.0,0.00041095,120]
[402917504,1768987515434,-500.0,0.00041095,120]
[402917505,1768987515485,-500.0,0.00041095,120]
[402917506,1768987515537,-500.0,0.00041095,120]
[402917507,1768987515589,-500.0,0.00041095,120]
[402917508,1768987515640,-500.0,0.00041095,120]
[402917509,1768987515706,-500.0,0.00041095,120]
[402917510,1768987515758,-500.0,0.00041095,120]
[402917511,1768987515811,-500.0,0.00041095,120]
[402917512,1768987515863,-726.3,0.00041095,120]
[402917513,1768987515916,-500.0,0.00041095,120]
[402917514,1768987515970,-500.0,0.00041095,120]
[402917515,1768987516023,-500.0,0.00041095,120]
[402917516,1768987516079,-669.38,0.00041095,120]
[402917517,1768987516134,-500.0,0.00041095,120]
[402917518,1768987516189,-500.0,0.00041095,120]
[402917519,1768987516243,-500.0,0.00041095,120]
[402917520,1768987516297,-500.0,0.00041095,120]
[402917521,1768987516351,-500.0,0.00041095,120]
[402917522,1768987516404,-500.0,0.00041095,120]
[402917523,1768987516458,-501.79,0.00041095,120]
[402917524,1768987516525,-500.0,0.00041095,120]
[402917525,1768987516581,-500.0,0.00041095,120]
[402917526,1768987516638,-500.0,0.00041095,120]
[402917527,1768987516692,-500.0,0.00041095,120]
[402917528,1768987516746,-500.0,0.00041095,120]
[402917529,1768987516799,-500.0,0.00041095,120]
[402917530,1768987516852,-500.0,0.00041095,120]
[402917531,1768987517164,-633.52,0.00041095,120]
[402917532,1768987517223,-500.0,0.00041095,120]
[402917533,1768987517279,-885.04,0.00041095,120]
[402917534,1768987517333,-500.0,0.00041095,120]
[402917535,1768987517388,-500.0,0.00041095,120]
[402917536,1768987517442,-500.0,0.00041095,120]
[402917537,1768987517496,-500.0,0.00041095,120]
[402917538,1768987517552,-500.0,0.00041095,120]
[402917539,1768987517605,-500.0,0.00041095,120]
[402917540,1768987517662,-594.03,0.00041095,120]
[402917541,1768987517716,-582.17,0.00041095,120]
[402917542,1768987517768,-500.0,0.00041095,120]
[402917543,1768987517818,-500.0,0.00041095,120]
[402917544,1768987517870,-500.0,0.00041095,120]
[402917545,1768987517922,-500.0,0.00041095,120]
[402917546,1768987517975,-500.0,0.00041095,120]
[402917547,1768987518031,-500.0,0.00041095,120]
[402917548,1768987518083,-510.39726354,0.00041095,120]
[402917549,1768987518143,-500.0,0.00041095,120]
[402917550,1768987518198,-500.0,0.00041095,120]
[402917551,1768987518252,-500.0,0.00041095,120]
[402917552,1768987518308,-500.0,0.00041095,120]
[402917553,1768987518361,-500.0,0.00041095,120]
[402917554,1768987518412,-500.0,0.00041095,120]
[402917555,1768987518466,-500.0,0.00041095,120]
[402917556,1768987518518,-500.0,0.00041095,120]
[402917557,1768987518572,-723.02,0.00041095,120]
[402917558,1768987518627,-500.0,0.00041095,120]
[402917559,1768987518682,-500.0,0.00041095,120]
[402917560,1768987518735,-500.0,0.00041095,120]
[402917561,1768987518789,-500.0,0.00041095,120]
[402917562,1768987518840,-679.71,0.00041095,120]
[402917563,1768987518895,-500.0,0.00041095,120]
[402917564,1768987518949,-509.39149737,0.00041095,120]
[402917565,1768987519008,-500.0,0.00041095,120]
[402917566,1768987519063,-462.16126402,0.00041095,120]
[402917567,1768987519117,-500.0,0.00041095,120]
[402917568,1768987519174,-714.9,0.00041095,120]
[402917569,1768987519231,-500.0,0.00041095,120]
[402917570,1768987519289,-500.0,0.00041095,120]
[402917571,1768987519346,-500.0,0.00041095,120]
[402917572,1768987519403,-500.0,0.00041095,120]
[402917573,1768987519468,-215.02093809,0.00041095,120]
[402917574,1768987519523,-589.5,0.00041095,120]
[402917575,1768987519576,-500.0,0.00041095,120]
[402917576,1768987519626,-500.0,0.00041095,120]
[402917577,1768987519676,-500.0,0.00041095,120]
[402917578,1768987519734,-1331.3,0.00041095,120]
[402917579,1768987519791,-500.0,0.00041095,120]
[402917580,1768987519847,-606.96,0.00041095,120]
[402917581,1768987519903,-504.80630221,0.00041095,120]
[402917582,1768987519959,-500.0,0.00041095,120]
[402917583,1768987520014,-500.0,0.00041095,120]
[402917584,1768987520071,-515.74,0.00041095,120]
[402917585,1768987520124,-632.04,0.00041095,120]
[402917586,1768987520179,-513.47,0.00041095,120]
[402917587,1768987520236,-578.84132752,0.00041095,120]
[402917588,1768987520294,-559.52,0.00041095,120]
[402917589,1768987520347,-500.0,0.00041095,120]
[402917590,1768987520400,-500.0,0.00041095,120]
[402917591,1768987520454,-239.16021764,0.00041095,120]
[402917592,1768987520506,-500.0,0.00041095,120]
[402917593,1768987520559,-752.51,0.00041095,120]
[402917594,1768987520611,-500.0,0.00041095,120]
[402917595,1768987520665,-500.0,0.00041095,120]
[402917596,1768987520728,-500.0,0.00041095,120]
[402917597,1768987520787,-500.0,0.00041095,120]
[402917598,1768987520839,-500.0,0.00041095,120]
[402917599,1768987520893,-500.0,0.00041095,120]
[402917600,1768987520946,-500.0,0.00041095,120]
[402917601,1768987520999,-669.57,0.00041095,120]
[402917602,1768987521058,-500.0,0.00041095,60]
[402917603,1768987521113,-500.0,0.00041095,120]
[402917604,1768987521170,-500.0,0.00041095,60]
[402917605,1768987521224,-500.0,0.00041095,120]
[402917606,1768987521283,-439.78559474,0.00041095,120]
[402917607,1768987521336,-500.0,0.00041095,120]
[402917608,1768987521390,-1155.7,0.00041095,120]
[402917609,1768987521444,-500.0,0.00041095,120]
[402917610,1768987521505,-500.0,0.00041095,120]
[402917611,1768987521559,-500.0,0.00041095,120]
[402917612,1768987521614,-500.0,0.00041095,120]
[402917613,1768987521668,-500.0,0.00041095,120]
[402917614,1768987521724,-1350.75,0.00041095,120]
[402917615,1768987521779,-500.0,0.00041095,120]
[402917616,1768987521832,-500.0,0.00041095,120]
[402917617,1768987521887,-500.0,0.00041095,120]
[402917618,1768987521939,-529.76,0.00041095,120]
[402917619,1768987521993,-500.0,0.00041095,120]
[402917620,1768987522048,-766.15,0.00041095,120]
[402917621,1768987522106,-853.58,0.00041095,120]
[402917622,1768987522165,-841.94,0.00041095,120]
[402917623,1768987522223,-695.08,0.00041095,120]
[402917624,1768987522281,-500.0,0.00041095,120]
[402917625,1768987522338,-519.43,0.00041095,120]
[402917626,1768987522665,-622.11,0.00041095,120]
[402917627,1768987522726,-500.0,0.00041095,120]
[402917628,1768987522782,-500.0,0.00041095,120]
[402917629,1768987522834,-500.0,0.00041095,120]
[402917630,1768987522886,-500.0,0.00041095,120]
[402917631,1768987522939,-500.0,0.00041095,120]
[402917632,1768987522992,-500.0,0.00041095,120]
[402917633,1768987523052,-586.24,0.00041095,120]
[402917634,1768987523126,-535.51,0.00041095,120]
[402917635,1768987523182,-500.0,0.00041095,120]
[402917636,1768987523239,-500.0,0.00041095,90]
[402917637,1768987523300,-500.0,0.00041095,120]
[402917638,1768987523361,-500.0,0.00041095,120]
[402917639,1768987523420,-644.47,0.00041095,120]
[402917640,1768987523478,-500.0,0.00041095,120]